Cogmind - Beta 14 *** ADVENTURER MODE // 2024.10.19 @ 05:25:51 Player: Lucyna Result: Destroyed by G-34 Mercenary with Small Laser Performance ------------- Evolutions (1) 500 Regions Visited (2) 400 Robots Destroyed (18) 90 Value Destroyed (368) 368 Prototype IDs (2) 40 Alien Tech Used (0) 0 Bonus (0) 0 TOTAL SCORE: 1398 Bonus ------- None Cogmind --------- Core Integrity 0/400 Matter 80/300 Energy 100/100 System Corruption 0% Temperature Cool (6) Movement Core (350) Ox6 Location -9/Materials Parts ------- > --- POWER (3) -------- (None) > --- PROPULSION (2) --- (None) > --- UTILITY (2) ------ Large Storage Unit > --- WEAPON (2) ------- Light Assault Rifle > --- INVENTORY (15) --- Hover Unit Heat Sink Seismic Detector Salvage Targeting Computer Weapon Shielding Weapon Shielding Field Recycling Unit (0) Beam Rifle Particle Cannon Assault Rifle Datajack Datajack Datajack Mining Laser Peak State ------------ > --- POWER ------------ (None) > --- PROPULSION ------- Light Treads Flight Unit > --- UTILITY ---------- Heat Sink Large Storage Unit > --- WEAPON ----------- Assault Rifle Light Assault Rifle > --- INVENTORY -------- Hover Unit Heat Sink Seismic Detector Weapon Shielding Particle Cannon Datajack Datajack Datajack Mining Laser [Rating: 7] Favorites ----------- Power Light Ion Engine Engine Light Ion Engine Propulsion Light Treads Treads Light Treads Leg Aluminum Leg Flight Unit Flight Unit Utility Large Storage Unit Device Heat Sink Storage Large Storage Unit Protection Light Armor Plating Weapon Assault Rifle Energy Gun EM Shotgun Energy Cannon Particle Cannon Ballistic Gun Assault Rifle Launcher Grenade Launcher Special Weapon Mining Laser Build | -11 -10 -9 ------- Run | Yrd Mat Mat Slots Evolved 2 | . . 2 Power 2 | . . 2 Propulsion . | . . . Utility . | . . . Weapon . | . . . Parts Attached 28 | 5 9 14 Power 2 | 1 1 . Engine 2 | 1 1 . Core . | . . . Reactor . | . . . Propulsion 7 | 2 1 4 Treads 5 | 1 1 3 Leg 1 | 1 . . Wheel . | . . . Hover . | . . . Flight 1 | . . 1 Utility 6 | 1 2 3 Device 2 | 1 . 1 Storage 3 | . 1 2 Processor . | . . . Hackware . | . . . Protection 1 | . 1 . Artifact . | . . . Weapon 13 | 1 5 7 Energy Gun 1 | . . 1 Energy Cannon 1 | . . 1 Ballistic Gun 5 | 1 1 3 Ballistic Cannon . | . . . Launcher 5 | . 4 1 Special Weapon 1 | . . 1 Impact Weapon . | . . . Slashing Weapon . | . . . Piercing Weapon . | . . . Special Melee Weapon . | . . . Unidentified Prototypes . | . . . Parts Lost 10 | . 1 9 Power 2 | . 1 1 Propulsion 4 | . . 4 Utility 2 | . . 2 Weapon 2 | . . 2 Highest Loss Streak 4 | . 1 4 To Critical Strikes . | . . . Average Slot Usage (%) 60 | . 81 51 Engine 6 | . 13 4 Treads 14 | . 24 10 Flight 4 | . . 5 Device 6 | . 8 5 Storage 8 | . 5 9 Protection 6 | . 11 4 Ballistic Gun 12 | . 13 11 Peak Build Rating 7 | 5 6 7 Average Rating 5 | 3 5 5 On Entrance 3 | . 5 6 Naked Turns 17 | . . 17 Heaviest Build 88 | 6 28 88 Greatest Support 20 | 20 20 20 Greatest Overweight (x) 29 | . 1 29 Average Overweight (x) 1 | . . 2 Largest Inventory Capacity 25 | 5 15 25 Average Capacity 13 | 5 8 16 Most Carried 14 | 5 6 14 Average Carried 6 | 2 4 8 Final Capacity 15 | 5 15 15 Final Carried 14 | 5 6 14 Class Distribution -------------------- 67% | Mutant 32% | Scavenger-Mutant Dominant Class ---------------- Mutant | -10/Materials Scavenger-Mutant | -9/Materials Resources | -11 -10 -9 ----------- Run | Yrd Mat Mat Matter Collected 421 | 189 33 199 Remotely . | . . . Salvage Created 549 | 184 150 215 Parts 37 | 11 8 18 Haulers Intercepted 1 | . 1 . Recyclers Shooed . | . . . Parts Field Recycled . | . . . Retrieved Matter . | . . . Parts Self-Destructed . | . . . Prevented . | . . . Kills | -11 -10 -9 ------- Run | Yrd Mat Mat Combat Hostiles Destroyed 12 | . 4 8 Guns 9 | . 1 8 AOE 3 | . 3 . Classes Destroyed 6 | 2 2 2 Tunneler 4 | 4 . . Hauler 1 | . 1 . Recycler 1 | 1 . . Swarmer 5 | . . 5 Grunt 6 | . 4 2 Sentry 1 | . . 1 Best Kill Streak 4 | 2 4 3 Combat Bots Only 3 | . 3 3 Max Kills in Single Turn 2 | 1 2 1 Gunslinging . | . . . Exploded 1 | . 1 . Melee . | . . . Uniques/NPCs Destroyed . | . . . Combat | -11 -10 -9 -------- Run | Yrd Mat Mat Hostile Shots Fired 244 | . 39 205 Missed 65 | . 13 52 Damage Taken 1525 | . 234 1291 Core 480 | . 77 403 Absorbed by Shields . | . . . Ignored by Resistances 467 | . 76 391 Core Remaining (%) 84 | 100 69 . Volleys Fired 88 | 22 19 47 Largest 2 | 1 1 2 Hottest 68 | 20 30 68 Shots Fired 103 | 22 20 61 Gun 95 | 22 15 58 Cannon 3 | . . 3 Launcher 5 | . 5 . Special . | . . . Kinetic 88 | 22 15 51 Thermal 3 | . . 3 Explosive 5 | . 5 . Electromagnetic 7 | . . 7 Robot Hit Streak 12 | 12 11 10 Robot Miss Streak 2 | 1 1 2 Penetration Max . | . . . Secondary Targets 1 | . . 1 Max Gunslinging Chain 1 | . . 1 Shots Hit Robots 81 | 19 17 45 Core Hits 32 | 6 9 17 Critical Kills . | . . . Critical Parts Destroyed 2 | 1 1 . Critical Strikes 2 | 1 1 . Destroy 2 | 1 1 . Melee Attacks . | . . . Impact . | . . . Slashing . | . . . Piercing . | . . . Sneak Attacks . | . . . Combat Hostiles . | . . . Follow-up Attacks . | . . . Damage Inflicted 1046 | 230 402 414 Guns 764 | 230 152 382 Cannons 21 | . . 21 Explosions 250 | . 250 . Melee . | . . . Ramming 11 | . . 11 Kinetic 691 | 230 152 309 Thermal 21 | . . 21 Explosive 250 | . 250 . Electromagnetic 73 | . . 73 Impact . | . . . Slashing . | . . . Piercing . | . . . Highest Corruption 1 | . 1 . Average Corruption 1 | . 1 . Corruption Purged . | . . . Corruption Blocked . | . . . Effects 4 | . 4 . Message Errors 1 | . 1 . Matter Fused 1 | . 1 . Heat Flow Errors 1 | . 1 . Misfires 1 | . 1 . Overload Shots . | . . . Overflow Damage 1 | . . 1 Projectiles 1 | . . 1 Explosions . | . . . Melee . | . . . Knockbacks . | . . . Impact . | . . . Kinetic . | . . . Secondary . | . . . Self-Inflicted Damage 4 | . . 4 Shots . | . . . Rammed 4 | . . 4 Targets Rammed 4 | . . 4 Kicked . | . . . Crushed . | . . . Highest Temperature 252 | . 252 36 Average Temperature 58 | . 90 9 Received Heat Transfer 708 | . 180 528 Siege Activations . | . . . Robots Corrupted . | . . . Combat Hostiles . | . . . Parts Fried 1 | . . 1 Impact Corruptions . | . . . Robots Melted . | . . . Combat Hostiles . | . . . Parts Melted . | . . . Heat Transferred 37 | . . 37 Parts Sabotaged . | . . . Parts Stolen . | . . . Parts Stripped . | . . . Power Chain Reactions . | . . . Alert | -11 -10 -9 ------- Run | Yrd Mat Mat Peak Influence 136 | 25 136 120 Initial 13 | . 13 1 Average 32 | 9 58 25 Maximum Alert Level . | . . . Low Security (%) 100 | 100 100 100 Level 1 . | . . . Level 2 . | . . . Level 3 . | . . . Level 4 . | . . . Level 5 . | . . . High Security . | . . . Max Security . | . . . Squads Dispatched 2 | . . 2 Investigation 1 | . . 1 Extermination . | . . . Reinforcement 1 | . . 1 Assault . | . . . Garrison . | . . . Intercept . | . . . Searches Triggered . | . . . Construction Impeded . | . . . Haulers Reinforced . | . . . Active Scanning Responses . | . . . Cargo Convoy Interrupts . | . . . Stealth | -11 -10 -9 --------- Run | Yrd Mat Mat Distress Signals . | . . . Communications Jammed . | . . . Distress Signals . | . . . Times Spotted 18 | . 5 13 Peak Tracking Total 5 | . 4 5 Tactical Retreats 2 | . 1 1 Traps | -11 -10 -9 ------- Run | Yrd Mat Mat Traps Triggered . | . . . Indirectly . | . . . Trap Hack Attempts . | . . . Triggered . | . . . Disarmed . | . . . Reprogrammed . | . . . Reused . | . . . Traps Extracted . | . . . Installed . | . . . Triggered . | . . . Machines | -11 -10 -9 ---------- Run | Yrd Mat Mat Machines Disabled 2 | . 1 1 Max in Single Turn 1 | . 1 1 Machines Repaired . | . . . Machines Dismantled . | . . . Machines Sabotaged . | . . . Overloaded Fab Kills . | . . . Hacking | -11 -10 -9 --------- Run | Yrd Mat Mat Machines Accessed 9 | . 4 5 Terminals 8 | . 3 5 Fabricators . | . . . Repair Stations . | . . . Recycling Units 1 | . 1 . Scanalyzers . | . . . Garrison Access . | . . . Total Hacks 30 | . 12 18 Successful 20 | . 8 12 Failed 10 | . 4 6 Catastrophic 1 | . 1 . Database Lockouts . | . . . Manual . | . . . Terminals 25 | . 7 18 Fabricators . | . . . Repair Stations . | . . . Recycling Units 5 | . 5 . Scanalyzers . | . . . Garrison Access . | . . . Terminal Hacks 16 | . 4 12 Prototype ID Bank 1 | . . 1 Emergency Access Points 1 | . . 1 Alert Level 3 | . 2 1 Locate Traps 2 | . 1 1 Dispatch Records 1 | . . 1 Maintenance Status 1 | . . 1 Surveillance Status 1 | . . 1 Transport Status 1 | . . 1 Reinforcement Status 1 | . . 1 Assault Status 1 | . 1 . Recall Reinforcements 1 | . . 1 Hauler Manifests 2 | . . 2 Fabricator Hacks . | . . . Repair Station Hacks . | . . . Recycling Unit Hacks 4 | . 4 . Recycle Component 1 | . 1 . Process 1 | . 1 . Report Inventory 1 | . 1 . Retrieve Matter 1 | . 1 . Scanalyzer . | . . . Garrison Access Hacks . | . . . Unauthorized Hacks . | . . . Terminals . | . . . Fabricators . | . . . Repair Stations . | . . . Recycling Units . | . . . Scanalyzers . | . . . Garrison Access . | . . . Data Cores Recovered . | . . . Used . | . . . Hacking Detections 6 | . 3 3 Full Trace Events 3 | . 2 1 Feedback Events 1 | . 1 . Corruption 1 | . 1 . Feedback Blocked . | . . . Robot Schematics Acquired . | . . . Robots Built . | . . . Authchips . | . . . Time . | . . . Total Robot Build Rating . | . . . Part Schematics Acquired . | . . . Parts Built . | . . . Authchips . | . . . Time . | . . . Total Part Build Rating . | . . . Parts Repaired . | . . . Time . | . . . Parts Recycled 1 | . 1 . Recycled Matter 37 | . 37 . Retrieved Matter . | . . . Retrieved Components . | . . . Parts Scanalyzed . | . . . Part Schematics Acquired . | . . . Parts Damaged . | . . . Bothacking | -11 -10 -9 ------------ Run | Yrd Mat Mat Used RIF Installer . | . . . Robots Hacked . | . . . Non-combat . | . . . Combat . | . . . Robot Hacks Applied . | . . . Relay Couplers Released . | . . . Fabnet Peak Effective % . | . . . Robots Rewired . | . . . Allies Hacked . | . . . Hacks Repelled . | . . . Allies | -11 -10 -9 -------- Run | Yrd Mat Mat Total Allies . | . . . Largest Group . | . . . Highest-Rated Group . | . . . Highest-Rated Ally . | . . . Total Orders . | . . . Ally Attacks . | . . . Total Damage . | . . . Kills . | . . . Allies Corrupted . | . . . Allies Melted . | . . . Intel | -11 -10 -9 ------- Run | Yrd Mat Mat Robot Analysis Total . | . . . Derelict Logs Recovered . | . . . Drone Launches . | . . . Drone Recoveries . | . . . Exploration | -11 -10 -9 ------------- Run | Yrd Mat Mat Turns Passed 2523 | 277 660 1586 Spaces Moved 1087 | 181 343 563 Core 226 | 8 . 218 Treads 622 | 17 260 345 Legs 239 | 156 83 . Wheels . | . . . Hover . | . . . Flight . | . . . Fastest Speed 50 | 50 120 50 Average Speed 207 | 120 174 256 Slowest Speed 1500 | 160 240 1500 Overloaded Moves . | . . . Propulsion Burnouts . | . . . Robots Hopped . | . . . Cave-ins Triggered . | . . . Exploration Rate (%) 29 | 10 46 31 Regions Visited 2 Branch Regions . Pre-discovered Areas . | . . . Known Exits Taken . | . . . Unknown Exits Taken 2 | 1 1 . Scrap Searched . | . . . Spaces Dug . | . . . Terrain Destroyed 11 | . 11 . Melee . | . . . Projectile . | . . . AOE 11 | . 11 . Terrain Rammed . | . . . Walls Destroyed . | . . . Machines Disabled . | . . . Actions | -11 -10 -9 --------- Run | Yrd Mat Mat Total 1259 | 217 389 653 Wait . | . . . Move 1085 | 180 342 563 Hop . | . . . Pick Up 40 | 10 10 20 Fast Attach 4 | . 2 2 Attach 18 | 5 5 8 Detach 2 | . 1 1 Swap 6 | . 2 4 Drop 12 | . 8 4 Fire 88 | 22 19 47 Melee . | . . . Ram 3 | . . 3 Kick . | . . . Crush 1 | . . 1 Escape Stasis . | . . . Rewire . | . . . Trap . | . . . Miscellaneous . | . . . Route ------- -11/Scrapyard -10/Materials (discovered 2 exits: *Mat / [*Min]) -9/Materials (discovered 1 exit: [*Min]) History --------- Turn | Location | Event 3 | -11/Scrapyard | Discovered new exit (range 15) 278 | -11/Scrapyard | Entered Materials 361 | -10/Materials | Build established: Mutant 562 | -10/Materials | Discovered new exit (range 15) 736 | -10/Materials | Discovered new exit (range 9) 938 | -10/Materials | Entered another Materials area 938 | -9/Materials | Evolved 2 slots: Power x2 1609 | -9/Materials | Core integrity fell below 50% 1982 | -9/Materials | Discovered new exit (range 16) 1992 | -9/Materials | Build established: Scavenger-Mutant 2166 | -9/Materials | Core integrity fell below 20% 2524 | -9/Materials | Destroyed by G-34 Mercenary with Small Laser Last Messages --------------- Downloaded coordinate data. 02382_ ALERT: Suspicious activity at Terminal M011. Dispatching Investigation squad. 02396_ Connecting with Terminal... >>Access(Emergency) Found 1 emergency access door: (67,27) Map updated. 02422_ O-16 Technician: "IFF HANDSHAKE FAILED. SECURING TERMINAL." 02431_ ALERT: Hostiles spotted, dispatching reinforcements to Terminal M006. 02461_ G-34 Mercenary destroyed. 02471_ Acquired 32 matter. 02476_ Lgt. Treads destroyed. 02491_ G-34 Mercenary destroyed. 02498_ Acquired 49 matter. 02504_ Lgt. Assault Rifle destroyed. 02506_ Heat Sink destroyed. 02510_ Flight Unit destroyed. Map ----- +----------------------------------------------------+ | | | | | | | | | | | | | | | | | ?????????????????????????????????????????????????? | | ?????????????????????????????????????????????????? | | ?????????????????????????????????????????????????? | | ???####################??????????????????????????? | | ???# #??????????????????????????? | | ???# #??????????????????????????? | | ???# #########+## #??????????????????????????? | | ???# #! ## #??????????????????????????? | | #### # ## #??????????????????????????? | | #! # ## #??????????????????????????? | | ! # "T" ## #??????????????????????????? | | ! #+##+####### #??????????????????????????? | | ! #?????# #?########?????????????????? | | ! #???### ### #?????????????????? | | #! #???# # #?????????????????? | | #### ##### =#[ ""#?????????????????? | | ???# """ T!*g = T"#?????????????????? | | #### """ ###### !#@ ""#?????????????????? | | ^^ """ #????# # #?????????????????? | | ^^ #????#### ##+######?????????????????? | | #???????# #??????????????????????? | | ^^ #???????# #??????????????????????? | | #### #??????##+##+#####??????????????????? | | """ #??????# #??????????????????? | | """"" #??????# #??????????????????? | | " """"" #??????# #??????????????????? | | " """"" +??????# #??????????????????? | | " """ #??????###+#######??????????????????? | | #??????? !???????????????????????? | | #??????# [ =?????????????????????? | | #??????# ???????????????????? | | #??????# #??????????????????? | | #??????# """ "" #??????????????????? | | #??????# """ S"" #??????????????????? | | #??????# """ "" #??????????????????? | | "" #??????# #??????????????????? | | % Y" #??????#####+####???????????????????? | | "" ??????????? ??????????????????????? | | % ????????????? ??????????????????????? | | ???????????? ??????????????????????? | | " ########??????????????????????????????????? | | " ##?????????????????????????????????????????? | +----------------------------------------------------+ Best States ------------- Heat Dissipation 38 Energy Generation 10 Energy Capacity 125 Matter Stores 198 Matter Capacity 300 Sight Range 16 Terrain Scan Density 10 Armor Coverage 150 Resistance: KI 20 Resistance: TH 20 Resistance: EX 20 Resistance: EM 20 Resistance: I 20 Resistance: S 20 Resistance: P 20 Evasion (%) 55 Recoil Reduction 1 Offensive Hacking 10 Item Schematics ----------------- None Robot Schematics ------------------ None Fabricated ------------ Nothing Alien Tech Used ----------------- None Achievements -------------- None Challenges ------------ None Game ------ Seed GunChargePendant Manual? 0 Play Time 00:19:36 Cumulative 7.0 hours Start 2024.10.19 @ 05:06:35 End 2024.10.19 @ 05:25:51 Sessions 1 Manual Loads 0 Difficulty Adventurer Special Mode None Game No. 11 Rogue 0 Adventurer 11 Explorer 0 Win Type - Total 0 Types 0/0/0/0/0/0/0/0/0 Lore% 2 Gallery% 6 Achievement% 7 Wizard Run 0 Options --------- Layout 1 ASCII 0 Keyboard 0 Movement Mouse Keybinds 0 Fullscreen 0 Font 20/SmallcapsGlow Map View 50x35 Zoom Use 0% Tactical HUD 1 Map Filters NONE Filters NONE Steam 1 RUN: c7280643-35a5-4230-8756-5f6b42b7e4e5